fUST/lending_fUST_20240826
["ID","MTS","AMOUNT","RATE_DAILY","PERIOD"]
[335985794,1724655042563,-1851.29332,0.00012225,2]
[335985796,1724655042573,-622.48,0.00012225,2]
[335985800,1724655042582,-500.0,0.00012225,2]
[335985803,1724655042591,-500.0,0.00012225,2]
[335985805,1724655042601,-745.84,0.00012225,2]
[335985807,1724655042611,-513.96,0.00012225,2]
[335985809,1724655042621,-547.27,0.00012225,2]
[335985812,1724655042631,-5009.38034,0.00012225,2]
[335985815,1724655042642,-5009.38034,0.00012225,2]
[335985818,1724655042651,-500.0,0.00012225,2]
[335985821,1724655042661,-645.87,0.00012225,2]
[335985823,1724655042672,-1037.35,0.00012225,2]
[335985825,1724655042691,-151.0,0.00012225,2]
[335985827,1724655042702,-500.0,0.00012225,2]
[335985829,1724655042712,-151.0,0.00012225,2]
[335985831,1724655042723,-151.0,0.00012225,2]
[335985834,1724655042738,-592.77987138,0.00012225,2]
[335985836,1724655042748,-866.15,0.00012225,2]
[335985838,1724655042758,-2444.755128,0.00012225,2]
[335985840,1724655042769,-2444.755128,0.00012225,2]
[335985842,1724655042779,-613.23,0.00012225,2]
[335985844,1724655042789,-500.0,0.00012225,2]
[335985846,1724655042798,-500.0,0.00012225,2]
[335985848,1724655042807,-500.0,0.00012225,2]
[335985850,1724655042817,-500.0,0.00012225,2]
[335985852,1724655042826,-694.15,0.00012225,2]
[335985854,1724655042836,-1116.442269,0.00012225,2]
[335985856,1724655042846,-1116.442269,0.00012225,2]
[335985858,1724655042855,-500.0,0.00012225,2]
[335985860,1724655042865,-490.97913741,0.00012225,2]
[335985862,1724655042874,-151.0,0.00012225,2]
[335985864,1724655042884,-627.53827637,0.00012225,2]
[335985866,1724655042894,-500.0,0.00012225,2]
[335985868,1724655042903,-500.0,0.00012225,2]
[335985870,1724655042912,-567.57,0.00012225,2]
[335985872,1724655042922,-503.0854609,0.00012225,2]
[335985874,1724655042932,-151.0,0.00012225,2]
[335985876,1724655042942,-1207.75,0.00012225,2]
[335985878,1724655042952,-151.0,0.00012225,2]
[335985880,1724655042962,-500.0,0.00012225,2]
[335985882,1724655042972,-500.0,0.00012225,2]
[335985884,1724655042982,-151.0,0.00012225,2]
[335985886,1724655042992,-1708.886644,0.00012225,2]
[335985888,1724655043001,-151.0,0.00012225,2]
[335985897,1724655043071,-1708.886644,0.00012225,2]
[335985899,1724655043081,-5399.905705,0.00012225,2]
[335985901,1724655043090,-5399.905705,0.00012225,2]
[335985903,1724655043099,-593.1,0.00012225,2]
[335985905,1724655043109,-151.0,0.00012225,2]
[335985907,1724655043119,-560.26,0.00012225,2]
[335985909,1724655043129,-802.502893,0.00012225,2]
[335985911,1724655043139,-500.0,0.00012225,2]
[335985913,1724655043149,-802.502893,0.00012225,2]
[335985915,1724655043159,-768.34,0.00012225,2]
[335985917,1724655043169,-589.95,0.00012225,2]
[335985919,1724655043178,-693.65,0.00012225,2]
[335985921,1724655043188,-500.0,0.00012225,2]
[335985923,1724655043198,-500.0,0.00012225,2]
[335985925,1724655043208,-500.0,0.00012225,2]
[335985927,1724655043217,-500.0,0.00012225,2]
[335985929,1724655043227,-251.36471,0.00012225,2]
[335985931,1724655043236,-500.0,0.00012225,2]
[335985933,1724655043246,-251.36471,0.00012225,2]
[335985935,1724655043255,-500.0,0.00012225,2]
[335985937,1724655043265,-500.0,0.00012225,2]
[335985939,1724655043274,-1793.226386,0.00012225,2]
[335985941,1724655043284,-500.0,0.00012225,2]
[335985943,1724655043293,-1793.226386,0.00012225,2]
[335985945,1724655043302,-1110.899373,0.00012225,2]
[335985947,1724655043311,-1110.899373,0.00012225,2]
[335985949,1724655043320,-500.0,0.00012234,2]
[335985951,1724655043329,-516.31989153,0.00012235,2]
[335985953,1724655043339,-500.0,0.00012235,2]
[335985955,1724655043347,-207.63613642,0.00012235,2]
[335985957,1724655043357,-501.57094394,0.00012235,2]
[335985959,1724655043366,-500.49770695,0.00012235,2]
[335985961,1724655043375,-500.6906057,0.00012235,2]
[335985963,1724655043384,-500.55030443,0.00012235,2]
[335985965,1724655043393,-530.76226465,0.00012235,2]
[335985967,1724655043402,-500.6666202,0.00012235,2]
[335985969,1724655043411,-500.0,0.00012235,2]
[335985971,1724655043420,-500.0,0.00012235,2]
[335985973,1724655043430,-381.7653579,0.00012235,2]
[335985975,1724655043439,-500.0,0.00012235,2]
[335985977,1724655043448,-533.70271463,0.00012235,2]
[335985979,1724655043458,-500.0,0.00012235,2]
[335985981,1724655043467,-498.95215855,0.00012235,2]
[335985983,1724655043477,-500.0,0.00012235,2]
[335985985,1724655043487,-500.0,0.00012235,2]
[335985987,1724655043496,-500.0,0.00012273,2]
[335985989,1724655043505,-500.0,0.00012273,2]
[335985991,1724655043515,-167.254161,0.00012273,2]
[335985993,1724655043524,-539.34726896,0.00012273,2]
[335985995,1724655043533,-598.7608682,0.00012273,2]
[335985997,1724655043542,-3000.0,0.00012399,2]
[335985999,1724655043551,-151.0,0.00012399,2]
[335986001,1724655043561,-151.0,0.00012399,2]
[335986003,1724655043570,-151.0,0.00012399,2]
[335986005,1724655043579,-477.950342,0.00012399,2]
[335986007,1724655043588,-758.757852,0.00012399,2]
[335986009,1724655043597,-477.950342,0.00012399,2]
[335986011,1724655043607,-758.757852,0.00012399,2]
[335986013,1724655043616,-151.0,0.00012399,2]
[335986015,1724655043625,-151.0,0.00012399,2]
[335986017,1724655043634,-151.0,0.00012399,2]
[335986019,1724655043643,-151.0,0.00012399,2]
[335986021,1724655043653,-2444.755128,0.00012399,2]
[335986023,1724655043662,-2444.755128,0.00012399,2]
[335986025,1724655043673,-1116.442269,0.00012399,2]
[335986027,1724655043689,-1116.442269,0.00012399,2]
[335986029,1724655043699,-151.0,0.00012399,2]
[335986031,1724655043708,-1708.886644,0.00012399,2]
[335986033,1724655043718,-1708.886644,0.00012399,2]
[335986036,1724655043733,-557.6,0.00012477,2]
[335986038,1724655043742,-500.0,0.00012486,2]
[335986040,1724655043752,-500.0,0.00012487,2]
[335986042,1724655043762,-695.3,0.00012487,2]
[335986044,1724655043771,-583.3183481,0.00012487,2]
[335986046,1724655043781,-596.78,0.00012487,2]
[335986048,1724655043790,-500.0,0.00012487,2]
[335986050,1724655043799,-500.0,0.00012487,2]
[335986052,1724655043808,-500.0,0.00012487,2]
[335986054,1724655043817,-500.0,0.00012487,2]
[335986056,1724655043827,-500.0,0.00012487,2]
[335986058,1724655043836,-500.0,0.00012487,2]
[335986060,1724655043845,-500.0,0.00012487,2]
[335986062,1724655043855,-624.06,0.00012487,2]
[335986064,1724655043864,-500.0,0.00012487,2]
[335986066,1724655043874,-384.54078142,0.00012487,2]
[335986068,1724655043883,-500.0,0.00012487,2]
[335986070,1724655043892,-500.0,0.00012487,2]
[335986072,1724655043902,-500.0,0.00012487,2]
[335986074,1724655043911,-500.0,0.00012487,2]
[335986076,1724655043920,-500.0,0.00012487,2]
[335986078,1724655043930,-151.0,0.00012487,2]
[335986080,1724655043940,-500.0,0.00012487,2]
[335986082,1724655043949,-500.0,0.00012487,2]
[335986084,1724655043958,-151.0,0.00012487,2]
[335986086,1724655043968,-500.0,0.00012487,2]
[335986088,1724655043977,-10039.09,0.00012487,2]
[335986090,1724655043986,-151.0,0.00012487,2]
[335986092,1724655043995,-500.0,0.00012487,2]
[335986094,1724655044005,-500.0,0.00012487,2]
[335986096,1724655044015,-151.0,0.00012487,2]
[335986098,1724655044026,-500.0,0.00012487,2]
[335986101,1724655044037,-5399.905705,0.00012487,2]
[335986102,1724655044046,-500.0,0.00012487,2]
[335986104,1724655044056,-2663.91,0.00012487,2]
[335986107,1724655044067,-5399.905705,0.00012487,2]
[335986109,1724655044076,-500.0,0.00012487,2]
[335986111,1724655044086,-500.0,0.00012487,2]
[335986113,1724655044095,-153.429114,0.00012487,2]
[335986114,1724655044104,-500.0,0.00012487,2]
[335986116,1724655044113,-753.55,0.00012487,2]
[335986118,1724655044123,-532.77848873,0.00012487,2]
[335986120,1724655044134,-500.0,0.00012487,2]
[335986122,1724655044144,-802.502893,0.00012487,2]
[335986124,1724655044153,-802.502893,0.00012487,2]
[335986126,1724655044162,-500.0,0.00012487,2]
[335986128,1724655044171,-715.28,0.00012487,2]
[335986130,1724655044189,-573.98,0.00012487,2]
[335986132,1724655044199,-589.71,0.00012487,2]
[335986134,1724655044215,-500.0,0.00012487,2]
[335986136,1724655044224,-500.0,0.00012487,2]
[335986138,1724655044233,-500.0,0.00012487,2]
[335986140,1724655044244,-500.0,0.00012487,2]
[335986142,1724655044253,-1250.92,0.00012487,2]
[335986144,1724655044262,-500.0,0.00012487,2]
[335986146,1724655044271,-546.02,0.00012487,2]
[335986148,1724655044281,-551.59,0.00012487,2]
[335986150,1724655044290,-852.53,0.00012487,2]
[335986152,1724655044299,-500.0,0.00012487,2]
[335986154,1724655044308,-500.0,0.00012487,2]
[335986156,1724655044317,-500.0,0.00012487,2]
[335986158,1724655044326,-500.0,0.00012487,2]
[335986160,1724655044336,-500.0,0.00012487,2]
[335986162,1724655044345,-500.0,0.00012487,2]
[335986164,1724655044355,-500.0,0.00012487,2]
[335986166,1724655044364,-500.0,0.00012487,2]
[335986168,1724655044374,-500.0,0.00012487,2]
[335986170,1724655044384,-6812.14,0.00012487,2]
[335986172,1724655044394,-500.0,0.00012487,2]
[335986174,1724655044404,-24297.96,0.00012487,2]
[335986176,1724655044413,-283.92382111,0.00012487,2]
[335986178,1724655044423,-500.0,0.00012487,2]
[335986180,1724655044433,-500.0,0.00012487,2]
[335986182,1724655044443,-644.13,0.00012487,2]
[335986184,1724655044452,-563.57,0.00012487,2]
[335986186,1724655044461,-500.0,0.00012487,2]
[335986188,1724655044472,-500.0,0.00012487,2]
[335986190,1724655044482,-1402.69,0.00012487,2]
[335986192,1724655044491,-500.0,0.00012487,2]
[335986194,1724655044501,-251.36471,0.00012487,2]
[335986196,1724655044510,-500.0,0.00012487,2]
[335986198,1724655044520,-251.36471,0.00012487,2]
[335986200,1724655044529,-500.0,0.00012487,2]
[335986202,1724655044539,-500.0,0.00012487,2]
[335986204,1724655044548,-1793.226386,0.00012487,2]
[335986206,1724655044557,-509.26,0.00012487,2]
[335986208,1724655044567,-1793.226386,0.00012487,2]
[335986210,1724655044577,-1110.899373,0.00012487,2]
[335986212,1724655044587,-500.0,0.00012487,2]
[335986215,1724655044596,-1110.899373,0.00012487,2]
[335986217,1724655044605,-500.0,0.00012487,2]
[335986219,1724655044615,-1028.24,0.00012487,2]
[335986221,1724655044625,-171.16013381,0.00012488,2]
[335986223,1724655044634,-500.0,0.00012488,2]
[335986225,1724655044643,-500.0,0.00012488,2]
[335986227,1724655044653,-500.0,0.00012488,2]
[335986229,1724655044663,-538.91,0.00012488,2]
[335986231,1724655044672,-683.9,0.00012488,2]
[335986233,1724655044687,-684.57,0.00012488,2]
[335986235,1724655044697,-783.19,0.00012488,2]
[335986237,1724655044712,-501.31729394,0.00012488,2]
[335986239,1724655044721,-966.17,0.00012488,2]
[335986241,1724655044730,-526.48,0.00012488,2]
[335986243,1724655044739,-905.77,0.00012488,2]
[335986245,1724655044748,-500.0,0.00012488,2]
[335986247,1724655044757,-500.0,0.00012488,2]
[335986249,1724655044766,-500.0,0.00012488,2]
[335986251,1724655044776,-500.0,0.00012488,2]
[335986253,1724655044785,-938.01,0.00012488,2]
[335986256,1724655044798,-3666.225702,0.00012488,2]
[335986258,1724655044807,-521.05,0.00012488,2]
[335986260,1724655044816,-6743.449786,0.00012488,2]
[335986262,1724655044826,-6743.449786,0.00012488,2]
[335986264,1724655044836,-1851.29332,0.00012488,2]
[335986266,1724655044845,-1851.29332,0.00012488,2]
[335986268,1724655044854,-739.68,0.00012488,2]
[335986270,1724655044864,-8795.32,0.00012488,2]
[335986272,1724655044874,-5009.38034,0.00012488,2]
[335986274,1724655044884,-5009.38034,0.00012488,2]
[335986276,1724655044893,-500.0,0.00012488,2]
[335986278,1724655044903,-697.68,0.00012488,2]
[335986280,1724655044912,-500.0,0.00012488,2]
[335986282,1724655044921,-611.07,0.00012488,2]
[335986285,1724655044943,-500.0,0.00012488,2]
[335986287,1724655044952,-2340.38,0.00012488,2]
[335986289,1724655044962,-500.0,0.00012488,2]
[335986290,1724655044971,-500.0,0.00012488,2]
[335986292,1724655044980,-1956.86,0.00012488,2]
[335986294,1724655044989,-500.0,0.00012488,2]
[335986296,1724655044998,-500.0,0.00012488,2]
[335986299,1724655045008,-4154.14,0.00012488,2]
[335986301,1724655045017,-500.0,0.00012488,2]
[335986303,1724655045026,-665.07,0.00012488,2]
[335986305,1724655045036,-553.57,0.00012488,2]
[335986307,1724655045046,-151.0,0.00012488,2]
[335986309,1724655045055,-500.0,0.00012488,2]
[335986311,1724655045065,-151.0,0.00012488,2]
[335986313,1724655045074,-922.27,0.00012488,2]
[335986315,1724655045083,-2905.7,0.00012488,2]
[335986317,1724655045093,-500.0,0.00012488,2]
[335986319,1724655045103,-151.0,0.00012488,2]
[335986321,1724655045112,-151.0,0.00012488,2]
[335986323,1724655045123,-151.0,0.00012488,2]
[335986325,1724655045134,-500.0,0.00012488,2]
[335986327,1724655045143,-500.0,0.00012488,2]
[335986329,1724655045153,-151.0,0.00012488,2]
[335986331,1724655045163,-151.0,0.00012488,2]
[335986333,1724655045173,-539.12,0.00012488,2]
[335986335,1724655045194,-3853.19,0.00012488,2]
[335986337,1724655045204,-294.04419169,0.00012488,2]
[335986339,1724655045215,-2393.851773,0.00012488,2]
[335986341,1724655045226,-2393.851773,0.00012488,2]
[335986343,1724655045235,-519.55,0.00012488,2]
[335986345,1724655045244,-610.85,0.00012488,2]
[335986348,1724655045255,-500.0,0.00012488,2]
[335986349,1724655045264,-500.0,0.00012488,2]
[335986351,1724655045273,-500.0,0.00012488,2]
[335986353,1724655045283,-653.57,0.00012488,2]
[335986355,1724655045292,-500.0,0.00012488,2]
[335986357,1724655045302,-500.0,0.00012488,2]
[335986359,1724655045311,-500.0,0.00012488,2]
[335986361,1724655045320,-984.48,0.00012488,2]
[335986363,1724655045329,-2044.126667,0.00012488,2]
[335986366,1724655045338,-2044.126667,0.00012488,2]
[335986369,1724655045348,-500.0,0.00012488,2]
[335986372,1724655045357,-500.0,0.00012488,2]
[335986375,1724655045367,-795.38,0.00012488,2]
[335986378,1724655045377,-500.0,0.00012488,2]
[335986381,1724655045386,-500.0,0.00012488,2]
[335986384,1724655045395,-500.0,0.00012488,2]
[335986387,1724655045405,-500.0,0.00012488,2]
[335986391,1724655045414,-500.0,0.00012488,2]
[335986393,1724655045429,-500.0,0.00012488,2]
[335986397,1724655045445,-1133.59,0.00012488,2]
[335986399,1724655045455,-1114.84,0.00012488,2]
[335986401,1724655045464,-151.0,0.00012488,2]
[335986403,1724655045474,-2021.09,0.00012488,2]
[335986405,1724655045484,-4444.55,0.00012488,2]
[335986407,1724655045494,-151.0,0.00012489,2]
[335986409,1724655045503,-151.0,0.00012489,2]
[335986411,1724655045513,-151.0,0.00012489,2]
[335986413,1724655045523,-151.0,0.00012489,2]
[335986415,1724655045532,-151.0,0.00012489,2]
[335986417,1724655045541,-903.372565,0.00012489,2]
[335986419,1724655045551,-345.41446,0.00012489,2]
[335986421,1724655045560,-289.472047,0.00012489,2]
[335986423,1724655045570,-903.372565,0.00012489,2]
[335986425,1724655045579,-345.41446,0.00012489,2]
[335986427,1724655045589,-2866.712922,0.00012489,2]
[335986429,1724655045599,-2866.712922,0.00012489,2]
[335986431,1724655045609,-222.907339,0.00012489,2]
[335986433,1724655045618,-222.907339,0.00012489,2]
[335986435,1724655045628,-278.952411,0.00012489,2]
[335986437,1724655045637,-278.952411,0.00012489,2]
[335986439,1724655045647,-151.0,0.00012489,2]
[335986442,1724655045657,-151.0,0.00012489,2]
[335986444,1724655045667,-151.0,0.00012489,2]
[335986446,1724655045685,-151.0,0.00012489,2]
[335986448,1724655045696,-5399.905705,0.00012489,2]
[335986450,1724655045705,-5399.905705,0.00012489,2]
[335986452,1724655045715,-802.502893,0.00012489,2]
[335986454,1724655045725,-802.502893,0.00012489,2]
[335986456,1724655045734,-251.36471,0.00012489,2]
[335986458,1724655045744,-251.36471,0.00012489,2]
[335986461,1724655045763,-1793.226386,0.00012489,2]
[335986462,1724655045774,-1793.226386,0.00012489,2]
[335986463,1724655045783,-1110.899373,0.00012489,2]
[335986464,1724655045793,-1110.899373,0.00012489,2]
[335986465,1724655045802,-27875.82946941,0.00012498,5]
[335986466,1724655045811,-851.38,0.00012498,2]
[335986467,1724655045821,-500.0,0.00012498,2]
[335986468,1724655045830,-214.63746201,0.00012498,2]
[335986469,1724655045840,-770.84,0.00012498,2]
[335986470,1724655045849,-500.0,0.00012498,2]
[335986471,1724655045859,-514.4,0.00012498,2]
[335986472,1724655045868,-500.0,0.00012498,2]
[335986473,1724655045878,-500.0,0.00012498,2]
[335986474,1724655045889,-887.55,0.00012498,2]
[335986476,1724655045899,-916.15,0.00012498,2]
[335986478,1724655045909,-500.0,0.00012498,2]
[335986480,1724655045919,-500.0,0.00012498,2]
[335986482,1724655045929,-660.28,0.00012498,2]
[335986484,1724655045938,-500.0,0.00012498,2]
[335986486,1724655045948,-541.3,0.00012498,2]
[335986488,1724655045957,-500.0,0.00012498,2]
[335986490,1724655045967,-500.0,0.00012498,2]
[335986492,1724655045976,-500.0,0.00012498,2]
[335986494,1724655045985,-500.0,0.00012498,2]
[335986496,1724655045994,-500.0,0.00012498,2]
[335986498,1724655046004,-595.64,0.00012498,2]
[335986500,1724655046014,-151.0,0.00012498,2]
[335986502,1724655046024,-500.0,0.00012498,2]
[335986504,1724655046033,-151.0,0.00012498,2]
[335986506,1724655046043,-853.18,0.00012498,2]
[335986508,1724655046053,-151.0,0.00012498,2]
[335986510,1724655046063,-477.950342,0.00012498,2]
[335986512,1724655046073,-758.757852,0.00012498,2]
[335986514,1724655046083,-619.4,0.00012498,2]
[335986516,1724655046093,-477.950342,0.00012498,2]
[335986518,1724655046103,-758.757852,0.00012498,2]
[335986520,1724655046113,-3666.225702,0.00012498,2]
[335986522,1724655046124,-520.39,0.00012498,2]
[335986524,1724655046135,-6743.449786,0.00012498,2]
[335986526,1724655046145,-6743.449786,0.00012498,2]
[335986528,1724655046156,-500.0,0.00012498,2]
[335986530,1724655046165,-151.0,0.00012498,2]
[335986532,1724655046183,-1851.29332,0.00012498,2]
[335986534,1724655046193,-1851.29332,0.00012498,2]
[335986536,1724655046202,-5009.38034,0.00012498,2]
[335986538,1724655046217,-856.27,0.00012498,2]
[335986540,1724655046227,-500.0,0.00012498,2]
[335986542,1724655046237,-5009.38034,0.00012498,2]
[335986544,1724655046247,-151.0,0.00012498,2]
[335986546,1724655046257,-500.0,0.00012498,2]
[335986548,1724655046267,-151.0,0.00012498,2]
[335986551,1724655046277,-642.65,0.00012498,2]
[335986553,1724655046288,-151.0,0.00012498,2]
[335986555,1724655046298,-2444.755128,0.00012498,2]
[335986557,1724655046308,-2444.755128,0.00012498,2]
[335986559,1724655046318,-500.0,0.00012498,2]
[335986561,1724655046328,-633.84,0.00012498,2]
[335986563,1724655046339,-500.0,0.00012498,2]
[335986565,1724655046350,-1116.442269,0.00012498,2]
[335986567,1724655046361,-500.0,0.00012498,2]
[335986570,1724655046371,-1116.442269,0.00012498,2]
[335986572,1724655046382,-500.0,0.00012498,2]
[335986574,1724655046392,-500.0,0.00012498,2]
[335986576,1724655046403,-151.0,0.00012498,2]
[335986578,1724655046414,-500.0,0.00012498,2]
[335986580,1724655046425,-151.0,0.00012498,2]
[335986582,1724655046441,-1045.63,0.00012498,2]
[335986584,1724655046451,-194.404701,0.00012498,2]
[335986587,1724655046462,-750.21,0.00012498,2]
[335986589,1724655046472,-538.8,0.00012498,2]
[335986591,1724655046483,-151.0,0.00012498,2]
[335986593,1724655046493,-1708.886644,0.00012498,2]
[335986595,1724655046503,-611.66,0.00012498,2]
[335986597,1724655046514,-151.0,0.00012498,2]
[335986599,1724655046525,-1708.886644,0.00012498,2]
[335986601,1724655046536,-5399.905705,0.00012498,2]
[335986603,1724655046546,-5399.905705,0.00012498,2]
[335986605,1724655046557,-500.0,0.00012498,2]
[335986607,1724655046567,-802.502893,0.00012498,2]
[335986610,1724655046578,-151.0,0.00012498,2]
[335986612,1724655046588,-151.0,0.00012498,2]
[335986614,1724655046598,-802.502893,0.00012498,2]
[335986616,1724655046610,-151.0,0.00012498,2]
[335986618,1724655046620,-500.0,0.00012498,2]
[335986620,1724655046630,-151.0,0.00012498,2]
[335986622,1724655046642,-151.0,0.00012498,2]
[335986624,1724655046652,-151.0,0.00012498,2]
[335986627,1724655046662,-151.0,0.00012498,2]
[335986629,1724655046673,-151.0,0.00012498,2]
[335986631,1724655046688,-151.264829,0.00012498,2]
[335986633,1724655046699,-151.0,0.00012498,2]
[335986634,1724655046708,-151.0,0.00012498,2]
[335986635,1724655046718,-151.0,0.00012498,2]
[335986636,1724655046728,-199.020436,0.00012498,2]
[335986637,1724655046739,-751.08,0.00012498,2]
[335986638,1724655046748,-2393.851773,0.00012498,2]
[335986639,1724655046758,-2393.851773,0.00012498,2]
[335986640,1724655046768,-2393.851773,0.00012498,2]
[335986641,1724655046778,-2393.851773,0.00012498,2]
[335986642,1724655046788,-500.0,0.00012498,2]
[335986643,1724655046798,-500.0,0.00012498,2]
[335986644,1724655046808,-556.68,0.00012498,2]
[335986645,1724655046818,-781.49,0.00012498,2]
[335986646,1724655046828,-2044.126667,0.00012498,2]
[335986647,1724655046838,-2044.126667,0.00012498,2]
[335986648,1724655046852,-541.49,0.00012498,2]
[335986649,1724655046862,-2044.126667,0.00012498,2]
[335986650,1724655046873,-2044.126667,0.00012498,2]
[335986651,1724655046882,-500.0,0.00012498,2]
[335986652,1724655046893,-595.01,0.00012498,2]
[335986654,1724655046904,-8461.29,0.00012498,2]
[335986656,1724655046914,-863.68,0.00012498,2]
[335986658,1724655046928,-251.36471,0.00012498,2]
[335986660,1724655046938,-615.07,0.00012498,2]
[335986663,1724655046949,-625.38,0.00012498,2]
[335986665,1724655046960,-251.36471,0.00012498,2]
[335986667,1724655046971,-151.0,0.00012498,2]
[335986669,1724655046981,-151.0,0.00012498,2]
[335986671,1724655046991,-586.18,0.00012498,2]
[335986673,1724655047001,-995.01,0.00012498,2]
[335986675,1724655047012,-1793.226386,0.00012498,2]
[335986677,1724655047022,-1793.226386,0.00012498,2]
[335986679,1724655047032,-1110.899373,0.00012498,2]
[335986681,1724655047042,-706.71,0.00012498,2]
[335986682,1724655047053,-1110.899373,0.00012498,2]
[335986683,1724655047063,-500.0,0.00012499,2]
[335986684,1724655047074,-500.0,0.00012499,2]
[335986685,1724655047084,-500.0,0.00012499,2]
[335986686,1724655047095,-500.0,0.00012499,2]
[335986687,1724655047105,-500.0,0.00012499,2]
[335986688,1724655047116,-201.941009,0.00012499,2]
[335986689,1724655047127,-201.941009,0.00012499,2]
[335986690,1724655047141,-366.665637,0.00012499,2]
[335986691,1724655047151,-366.665637,0.00012499,2]
[335986692,1724655047161,-500.0,0.00012499,2]
[335986693,1724655047172,-500.0,0.00012499,2]
[335986695,1724655047183,-500.0,0.00012499,2]
[335986697,1724655047194,-500.0,0.00012499,2]
[335986699,1724655047204,-500.0,0.00012499,2]
[335986700,1724655047217,-500.0,0.00012499,2]
[335986702,1724655047228,-500.0,0.00012499,2]
[335986704,1724655047239,-500.0,0.00012499,2]
[335986706,1724655047250,-286.937364,0.00012499,2]
[335986707,1724655047260,-993.83,0.00012499,2]
[335986708,1724655047271,-286.937364,0.00012499,2]
[335986709,1724655047281,-151.0,0.00012499,2]
[335986710,1724655047291,-163.827384,0.00012499,2]
[335986711,1724655047303,-500.0,0.00012499,2]
[335986712,1724655047313,-987.79,0.00012499,2]
[335986713,1724655047323,-151.0,0.00012499,2]
[335986714,1724655047334,-500.0,0.00012499,2]
[335986715,1724655047344,-500.0,0.00012499,2]
[335986716,1724655047354,-500.0,0.00012499,2]
[335986717,1724655047364,-500.0,0.00012499,2]
[335986718,1724655047374,-500.0,0.00012499,2]
[335986719,1724655047384,-589.49,0.00012499,2]
[335986720,1724655047394,-191.358356,0.00012499,2]
[335986722,1724655047405,-1110.6,0.00012499,2]
[335986724,1724655047416,-500.0,0.00012499,2]
[335986726,1724655047428,-910.05,0.00012499,2]
[335986728,1724655047438,-500.0,0.00012499,2]
[335986730,1724655047449,-169.57906181,0.00012499,2]
[335986732,1724655047459,-500.0,0.00012499,2]
[335986734,1724655047469,-575.61,0.00012499,2]
[335986736,1724655047479,-500.0,0.00012499,2]
[335986738,1724655047489,-187.10364623,0.00012499,2]
[335986740,1724655047499,-159.593905,0.00012499,2]
[335986741,1724655047511,-159.593905,0.00012499,2]
[335986743,1724655047521,-500.0,0.00012499,2]
[335986745,1724655047531,-159.593905,0.00012499,2]
[335986747,1724655047542,-159.593905,0.00012499,2]
[335986749,1724655047551,-1055.54,0.00012499,2]
[335986751,1724655047562,-500.0,0.00012499,2]
[335986753,1724655047573,-151.0,0.00012499,2]
[335986755,1724655047583,-500.0,0.00012499,2]
[335986758,1724655047593,-521.73176821,0.00012499,2]
[335986759,1724655047602,-151.0,0.00012499,2]
[335986761,1724655047613,-500.39,0.00012499,2]
[335986763,1724655047623,-590.9,0.00012499,2]
[335986765,1724655047633,-500.0,0.00012499,2]
[335986767,1724655047643,-509.37,0.00012499,2]
[335986769,1724655047653,-500.0,0.00012499,2]
[335986770,1724655047662,-332.694143,0.00012499,2]